Workbook

Sheet 3x3 no damping
A1: Previous | B1: Page Rank Matrix | E1: Next | F1: Change
A2: 1 | B2: 0 | C2: 1 | D2: 0 | E2: =MMULT(B2:D4,A2:A4) -> 1 | F2: =E2-A2 -> 0
A3: 1 | B3: 1 | C3: 0 | D3: 1 | E3: 2 | F3: =E3-A3 -> 1
A4: 1 | B4: 0 | C4: 0 | D4: 0 | E4: 0 | F4: -1
E5: =SUM(E2:E4) -> 3 | F5: Magnitude
F6: =SQRT(SUMSQ(F2:F4)) -> 1.414213562

Sheet 3x3
A1: Previous | B1: Connectivity Matrix | E1: PageRank matrix | H1: Next | I1: Change
A2: 1.38756042 | B2: 0 | C2: 1 | D2: 0 | E2: =B2*(1-$D$7)+$D$7/3 -> 0.05 | F2: =C2*(1-$D$7)+$D$7/3 -> 0.9 | G2: 0.05 | H2: =MMULT(E2:G4,A2:A4) -> 1.393073643 | I2: =H2-A2 -> 0.005513223807
A3: 1.46243958 | B3: 1 | C3: 0 | D3: 1 | E3: =B3*(1-$D$7)+$D$7/3 -> 0.9 | F3: =C3*(1-$D$7)+$D$7/3 -> 0.05 | G3: =D3*(1-$D$7)+$D$7/3 -> 0.9 | H3: 1.456926357 | I3: =H3-A3 -> -0.005513223807
A4: 0.15 | B4: 0 | C4: 0 | D4: 0 | E4: 0.05 | F4: 0.05 | G4: 0.05 | H4: 0.15 | I4: =H4-A4 -> 0
I5: Magnitude
I6: =SQRT(SUMSQ(I2:I4)) -> 0.007796875881
C7: Damping | D7: 0.15

Sheet 6x6
A1: Previous | B1: Connectivity | H1: Google | N1: Next
A2: 1.151405546 | B2: 0 | C2: 0 | D2: 0.333 | E2: 0 | G2: 1 | H2: =B2*(1-$D$10)+$D$10/6 -> 0.025 | I2: =C2*(1-$D$10)+$D$10/6 -> 0.025 | J2: 0.30805 | K2: 0.025 | L2: 0.025 | M2: 0.875 | N2: =MMULT(H2:M7,A2:A7) -> 1.151150289
A3: 0.58723244 | B3: 0.333 | C3: 0 | D3: 0.333 | E3: 0 | H3: =B3*(1-$D$10)+$D$10/6 -> 0.30805 | I3: =C3*(1-$D$10)+$D$10/6 -> 0.025 | J3: =D3*(1-$D$10)+$D$10/6 -> 0.30805 | K3: =E3*(1-$D$10)+$D$10/6 -> 0.025 | L3: =F3*(1-$D$10)+$D$10/6 -> 0.025 | M3: =G3*(1-$D$10)+$D$10/6 -> 0.025 | N3: 0.5871021948
A4: 0.3981597853 | B4: 0 | C4: 0.5 | D4: 0 | E4: 0 | H4: 0.025 | I4: 0.45 | J4: 0.025 | K4: 0.025 | L4: 0.025 | M4: 0.025 | N4: 0.3980715147
A5: 1.409357292 | B5: 0.333 | C5: 0.5 | D5: 0.333 | E5: 0 | F5: 0.5 | H5: 0.30805 | I5: 0.45 | J5: 0.30805 | K5: 0.025 | L5: 0.45 | M5: 0.025 | N5: 1.409044734
A6: 1.346750006 | B6: 0 | C6: 0 | E6: 1 | H6: 0.025 | I6: 0.025 | J6: 0.025 | K6: 0.875 | L6: 0.025 | M6: 0.025 | N6: 1.346451426
A7: 1.04700404 | B7: 0.333 | C7: 0 | F7: 0.5 | H7: 0.30805 | I7: 0.025 | J7: 0.025 | K7: 0.025 | L7: 0.45 | M7: 0.025 | N7: 1.04677182
N8: =SUM(N2:N7) -> 5.938591979
C10: Damping | D10: 0.15

Sheet 11x11
A1: Prev | B1: Connections | M1: Google | X1: Next
A2: 1.672843886 | B2: 0 | C2: 0 | D2: 0.333 | E2: 0 | G2: 1 | H2: 0 | I2: 0 | J2: 0 | K2: 0 | L2: 0 | M2: =B2*(1-$E$17)+$E$17/11 -> 0.01363636364 | N2: =C2*(1-$E$17)+$E$17/11 -> 0.01363636364 | O2: 0.2966863636 | P2: 0.01363636364 | Q2: 0.01363636364 | R2: 0.8636363636 | S2: 0.01363636364 | T2: 0.01363636364 | U2: 0.01363636364 | V2: 0.01363636364 | W2: 0.01363636364 | X2: =MMULT(M2:W12,A2:A12) -> 1.663816529 | Y2: a
A3: 0.7520712967 | B3: 0.333 | C3: 0 | D3: 0.333 | E3: 0 | H3: 0 | I3: 0 | J3: 0 | K3: 0 | L3: 0 | M3: =B3*(1-$E$17)+$E$17/11 -> 0.2966863636 | N3: =C3*(1-$E$17)+$E$17/11 -> 0.01363636364 | O3: =D3*(1-$E$17)+$E$17/11 -> 0.2966863636 | P3: =E3*(1-$E$17)+$E$17/11 -> 0.01363636364 | Q3: =F3*(1-$E$17)+$E$17/11 -> 0.01363636364 | R3: =G3*(1-$E$17)+$E$17/11 -> 0.01363636364 | S3: =H3*(1-$E$17)+$E$17/11 -> 0.01363636364 | T3: =I3*(1-$E$17)+$E$17/11 -> 0.01363636364 | U3: =J3*(1-$E$17)+$E$17/11 -> 0.01363636364 | V3: =K3*(1-$E$17)+$E$17/11 -> 0.01363636364 | W3: =L3*(1-$E$17)+$E$17/11 -> 0.01363636364 | X3: 0.7565627366 | Y3: b
A4: 0.4712719944 | B4: 0 | C4: 0.5 | D4: 0 | E4: 0 | H4: 0 | I4: 0 | J4: 0 | K4: 0 | L4: 0 | M4: 0.01363636364 | N4: 0.4386363636 | O4: 0.01363636364 | P4: 0.01363636364 | Q4: 0.01363636364 | R4: 0.01363636364 | S4: 0.01363636364 | T4: 0.01363636364 | U4: 0.01363636364 | V4: 0.01363636364 | W4: 0.01363636364 | X4: 0.4693010377 | Y4: c
A5: 1.894405035 | B5: 0.333 | C5: 0.5 | D5: 0.333 | E5: 0 | F5: 0.5 | H5: 0 | I5: 0 | J5: 0 | K5: 0 | L5: 0 | M5: 0.2966863636 | N5: 0.4386363636 | O5: 0.2966863636 | P5: 0.01363636364 | Q5: 0.4386363636 | R5: 0.01363636364 | S5: 0.01363636364 | T5: 0.01363636364 | U5: 0.01363636364 | V5: 0.01363636364 | W5: 0.01363636364 | X5: 1.907419687 | Y5: d
A6: 1.955827409 | B6: 0 | C6: 0 | E6: 1 | H6: =1/6 -> 0.1666666667 | I6: 0 | J6: 0 | K6: 0 | L6: 0 | M6: 0.01363636364 | N6: 0.01363636364 | O6: 0.01363636364 | P6: 0.8636363636 | Q6: 0.01363636364 | R6: 0.01363636364 | S6: 0.1553030303 | T6: 0.01363636364 | U6: 0.01363636364 | V6: 0.01363636364 | W6: 0.01363636364 | X6: 1.939778637 | Y6: e
A7: 1.624414417 | B7: 0.333 | C7: 0 | F7: 0.5 | H7: =1/6 -> 0.1666666667 | I7: 0 | J7: 0 | K7: 0 | L7: 0 | M7: 0.2966863636 | N7: 0.01363636364 | O7: 0.01363636364 | P7: 0.01363636364 | Q7: 0.4386363636 | R7: 0.01363636364 | S7: 0.1553030303 | T7: 0.01363636364 | U7: 0.01363636364 | V7: 0.01363636364 | W7: 0.01363636364 | X7: 1.634259468 | Y7: f
A8: 1.269625557 | B8: 0 | C8: 0 | D8: 0 | E8: 0 | F8: 0 | G8: 0 | H8: 0 | I8: 1 | J8: 1 | K8: 1 | L8: 1 | M8: 0.01363636364 | N8: 0.01363636364 | O8: 0.01363636364 | P8: 0.01363636364 | Q8: 0.01363636364 | R8: 0.01363636364 | S8: 0.01363636364 | T8: 0.8636363636 | U8: 0.8636363636 | V8: 0.8636363636 | W8: 0.8636363636 | X8: 1.284755993
A9: 0.3338486048 | B9: 0 | C9: 0 | D9: 0 | E9: 0 | F9: 0 | G9: 0 | H9: =1/6 -> 0.1666666667 | I9: 0 | J9: 0 | K9: 0 | L9: 0 | M9: 0.01363636364 | N9: 0.01363636364 | O9: 0.01363636364 | P9: 0.01363636364 | Q9: 0.01363636364 | R9: 0.01363636364 | S9: 0.1553030303 | T9: 0.01363636364 | U9: 0.01363636364 | V9: 0.01363636364 | W9: 0.01363636364 | X9: 0.3295343572
A10: 0.3338486048 | B10: 0 | C10: 0 | D10: 0 | E10: 0 | F10: 0 | G10: 0 | H10: =1/6 -> 0.1666666667 | I10: 0 | J10: 0 | K10: 0 | L10: 0 | M10: 0.01363636364 | N10: 0.01363636364 | O10: 0.01363636364 | P10: 0.01363636364 | Q10: 0.01363636364 | R10: 0.01363636364 | S10: 0.1553030303 | T10: 0.01363636364 | U10: 0.01363636364 | V10: 0.01363636364 | W10: 0.01363636364 | X10: 0.3295343572
A11: 0.3338486048 | B11: 0 | C11: 0 | D11: 0 | E11: 0 | F11: 0 | G11: 0 | H11: =1/6 -> 0.1666666667 | I11: 0 | J11: 0 | K11: 0 | L11: 0 | M11: 0.01363636364 | N11: 0.01363636364 | O11: 0.01363636364 | P11: 0.01363636364 | Q11: 0.01363636364 | R11: 0.01363636364 | S11: 0.1553030303 | T11: 0.01363636364 | U11: 0.01363636364 | V11: 0.01363636364 | W11: 0.01363636364 | X11: 0.3295343572
A12: 0.3338486048 | B12: 0 | C12: 0 | D12: 0 | E12: 0 | F12: 0 | G12: 0 | H12: =1/6 -> 0.1666666667 | I12: 0 | J12: 0 | K12: 0 | L12: 0 | M12: 0.01363636364 | N12: 0.01363636364 | O12: 0.01363636364 | P12: 0.01363636364 | Q12: 0.01363636364 | R12: 0.01363636364 | S12: 0.1553030303 | T12: 0.01363636364 | U12: 0.01363636364 | V12: 0.01363636364 | W12: 0.01363636364 | X12: 0.3295343572
R14: =1/6 -> 0.1666666667
D17: Damping | E17: 0.15
